Cogmind - Beta 17 *** ADVENTURER MODE // 2026.06.23 @ 15:08:15 Player: smidge Result: Self-destructed Performance ------------- Evolutions (4) 2000 Regions Visited (5) 1000 Robots Destroyed (56) 280 Value Destroyed (2032) 2032 Prototype IDs (4) 80 Alien Tech Used (0) 0 Bonus (3000) 3000 TOTAL SCORE: 8392 Bonus ------- Subatomizer Sterilization 3000 Cogmind --------- Core Integrity 544/850 Matter 221/300 Energy 77/100 System Corruption 7% Temperature Cool (9) Movement Hovering (56) Location -6/Factory Parts ------- > --- POWER (2) -------- (None) > --- PROPULSION (5) --- Gravmag Array Gravmag Array > --- UTILITY (5) ------ Cryofiber Web Advanced Heat Sink Medium Storage Unit Advanced Sensor Array > --- WEAPON (3) ------- Phase Cannon > --- INVENTORY (10) --- Cooled Aerolev Unit Gravmag Array Advanced Melee Analysis Suite Improved Core Shielding Peak State ------------ > --- POWER ------------ Angular Momentum Engine Light Angular Momentum Engine > --- PROPULSION ------- Gravmag System Gravmag Array Gravmag Array > --- UTILITY ---------- Cryofiber Web Medium Storage Unit Improved Reaction Control System Hardlight Generator Hacking Suite > --- WEAPON ----------- Thermic Laser Force Rifle Heavy Flak Cannon > --- INVENTORY -------- Cooled Aerolev Unit Gravmag Array Gravmag Array Advanced Heat Sink Advanced Sensor Array Improved Grenade Launcher [Rating: 68] Favorites ----------- Power Light Ion Engine Engine Light Ion Engine Power Core Light Nuclear Core Propulsion Light Treads Treads Light Treads Leg Titanium Leg Wheel Compact Wheel Hover Unit Gravmag Array Utility High-capacity Storage Unit Device Hardlight Generator Storage High-capacity Storage Unit Processor Signal Interpreter Hackware Hacking Suite Protection Light Armor Plating Weapon Light Cannon Energy Gun Heavy Laser Energy Cannon Beam Cannon Ballistic Gun Heavy Assault Rifle Ballistic Cannon Light Cannon Launcher Improved Grenade Launcher Build | -11 -10 -10 -8 -7 -6 ------- Run | Yrd Mat Sub Mat Fac Fac Slots Evolved 8 | . . . 4 2 2 Power 1 | . . . . 1 . Propulsion 3 | . . . 2 . 1 Utility 3 | . . . 2 . 1 Weapon 1 | . . . . 1 . Parts Attached 64 | 7 10 1 14 10 22 Power 10 | 1 2 1 2 1 3 Engine 9 | 1 2 1 2 1 2 Core 1 | . . . . . 1 Reactor . | . . . . . . Propulsion 18 | 3 2 . 2 4 7 Treads 7 | 1 1 . 1 4 . Leg 1 | . . . 1 . . Wheel 3 | 2 1 . . . . Hover 7 | . . . . . 7 Flight . | . . . . . . Utility 18 | 1 4 . 4 2 7 Device 6 | . . . 1 1 4 Storage 4 | 1 2 . . . 1 Processor 3 | . 2 . 1 . . Hackware 1 | . . . . . 1 Protection 4 | . . . 2 1 1 Artifact . | . . . . . . Weapon 18 | 2 2 . 6 3 5 Energy Gun 9 | 2 . . 2 2 3 Energy Cannon 2 | . 1 . . . 1 Ballistic Gun 1 | . . . 1 . . Ballistic Cannon 4 | . 1 . 1 1 1 Launcher 2 | . . . 2 . . Special Weapon . | . . . . . . Impact Weapon . | . . . . . . Slashing Weapon . | . . . . . . Piercing Weapon . | . . . . . . Special Melee Weapon . | . . . . . . Unidentified Prototypes 1 | . . . . . 1 Parts Lost 14 | . 1 . 1 . 12 Power 3 | . 1 . . . 2 Propulsion 3 | . . . . . 3 Utility 4 | . . . . . 4 Weapon 4 | . . . 1 . 3 Highest Loss Streak 4 | . 1 . 1 . 4 To Critical Strikes . | . . . . . . Average Backups 14 | 2 12 18 13 18 8 Power 1 | . 1 1 1 2 . Propulsion 1 | . 1 1 . 2 3 Utility 6 | . 5 10 4 9 2 Weapon 4 | . 4 5 6 5 1 Tool/Special . | . . . . . . Unused Backups 38 | . 1 14 2 5 16 Power . | . . . . . . Propulsion 5 | . . . . . 5 Utility 23 | . . 10 . 4 9 Weapon 10 | . 1 4 2 1 2 Tool/Special . | . . . . . . Average Slot Usage (%) 93 | . 97 100 95 99 74 Engine 12 | . 13 14 9 15 9 Treads 20 | . 17 28 27 28 1 Leg 1 | . . . 6 1 . Wheel 2 | . 10 . . . . Hover 3 | . . . . . 17 Device 5 | . . . 3 7 18 Storage 10 | . 14 14 9 7 6 Processor 9 | . 12 14 12 7 . Protection 3 | . . . 9 7 . Energy Gun 8 | . 12 . 3 13 7 Energy Cannon 4 | . 8 14 1 . . Ballistic Gun 1 | . . . 6 1 . Ballistic Cannon 7 | . 7 14 5 7 3 Peak Build Rating 68 | 6 9 28 34 46 68 Average Rating 27 | 4 7 10 24 39 57 On Entrance 19 | . 6 9 28 27 46 Avg Prop Armor Cover (%) 3 | 6 . . 3 3 3 Naked Turns . | . . . . . . Heaviest Build 98 | 11 49 50 63 96 98 Greatest Support 86 | 26 40 40 60 86 86 Greatest Overweight (x) 1 | . 1 1 1 1 1 Average Overweight (x) . | . . 1 . 1 . Largest Inventory Capacity 20 | 8 20 20 20 20 20 Average Capacity 17 | 7 15 20 20 20 10 Most Carried 20 | 4 20 20 20 20 20 Average Carried 15 | 2 12 19 16 19 9 Final Capacity 20 | 8 20 20 20 20 10 Final Carried 20 | 4 20 20 20 18 5 Class Distribution -------------------- 52% | Mutant 22% | Tank 14% | Hacker-Mutant 9% | Scavenger-Mutant Dominant Class ---------------- Mutant | -10/Materials Mutant | -10/Subcaves Mutant | -8/Materials Tank | -7/Factory Hacker-Mutant | -6/Factory Resources | -11 -10 -10 -8 -7 -6 ----------- Run | Yrd Mat Sub Mat Fac Fac Matter Collected 1547 | 221 249 89 400 149 439 Remotely . | . . . . . . Salvage Created 1891 | . 506 . 513 158 714 Parts 83 | . 33 . 22 4 24 Haulers Intercepted 1 | . 1 . . . . Recyclers Shooed 1 | . . . 1 . . Parts Field Recycled . | . . . . . . Retrieved Matter . | . . . . . . Parts Self-Destructed . | . . . . . . Prevented . | . . . . . . Parts Restored . | . . . . . . Kills | -11 -10 -10 -8 -7 -6 ------- Run | Yrd Mat Sub Mat Fac Fac Combat Hostiles Destroyed 49 | . 13 . 16 4 16 Guns 22 | . 8 . 7 2 5 Cannons 10 | . 3 . 3 2 2 AOE 14 | . 2 . 6 . 6 Classes Destroyed 11 | . 5 . 3 2 1 Hauler 1 | . 1 . . . . Recycler 1 | . 1 . . . . Watcher 5 | . 3 . 2 . . Swarmer 14 | . 9 . 3 . 2 Grunt 25 | . 4 . 8 2 11 Duelist 2 | . . . 2 . . Protector 1 | . . . 1 . . Sentry 3 | . . . 2 . 1 Specialist 1 | . . . . . 1 Hunter 1 | . . . . 1 . Programmer 2 | . . . . 1 1 Best Kill Streak 4 | . 4 . 3 3 4 Combat Bots Only 4 | . 4 . 3 3 4 Max Kills in Single Turn 4 | . 2 . 2 1 4 Gunslinging . | . . . . . . Exploded 4 | . 2 . 2 . 4 Melee . | . . . . . . Uniques/NPCs Destroyed . | . . . . . . Combat | -11 -10 -10 -8 -7 -6 -------- Run | Yrd Mat Sub Mat Fac Fac Hostile Shots Fired 427 | . 90 . 67 27 243 Missed 153 | . 40 . 18 8 87 Hits 274 | . 50 . 49 19 156 Melee 6 | . . . 6 . . Projectile 268 | . 50 . 43 19 156 Critical Strikes 8 | . . . 2 2 4 Part Disruptions 2 | . . . . . 2 Damage Taken 2875 | . 367 . 549 132 1827 Core 471 | . 68 . 67 30 306 Absorbed by Shields 264 | . . . 80 56 128 Ignored by Resistances 974 | . 120 . 189 113 552 Core Remaining (%) 88 | 100 . 72 87 95 . Volleys Fired 165 | . 40 . 47 14 64 Largest 3 | . 2 . 2 3 3 Hottest 164 | . 90 . 92 164 164 Shots Fired 288 | . 80 . 83 27 98 Gun 192 | . 48 . 62 13 69 Cannon 86 | . 32 . 16 14 24 Launcher 10 | . . . 5 . 5 Special . | . . . . . . Kinetic 98 | . 16 . 47 14 21 Thermal 136 | . 40 . 31 9 56 Explosive 10 | . . . 5 . 5 Electromagnetic 44 | . 24 . . 4 16 Robot Hit Streak 38 | . 17 . 28 13 38 Robot Miss Streak 5 | . 5 . 1 2 5 Penetration Max . | . . . . . . Secondary Targets 2 | . 2 . . . . Max Gunslinging Chain 1 | . 1 . . . . Shots Hit Robots 233 | . 60 . 70 20 83 Core Hits 117 | . 25 . 44 7 41 Critical Kills 1 | . . . 1 . . Critical Parts Destroyed . | . . . . . . Critical Strikes 15 | . . . 4 . 11 Burn 13 | . . . 3 . 10 Destroy 1 | . . . 1 . . Blast 1 | . . . . . 1 Melee Attacks . | . . . . . . Impact . | . . . . . . Slashing . | . . . . . . Piercing . | . . . . . . Sneak Attacks . | . . . . . . Combat Hostiles . | . . . . . . Follow-up Attacks . | . . . . . . Damage Inflicted 5308 | . 879 . 1739 440 2250 Guns 2462 | . 442 . 762 170 1088 Cannons 1209 | . 379 . 228 270 332 Explosions 1601 | . 58 . 729 . 814 Melee . | . . . . . . Ramming 36 | . . . 20 . 16 Kinetic 1387 | . 204 . 581 270 332 Thermal 1774 | . 415 . 409 136 814 Explosive 1543 | . . . 729 . 814 Electromagnetic 568 | . 260 . . 34 274 Impact . | . . . . . . Slashing . | . . . . . . Piercing . | . . . . . . Highest Corruption 7 | . . . . . 7 Average Corruption 5 | . . . . . 5 Corruption Purged . | . . . . . . Corruption Blocked . | . . . . . . Effects 12 | . . . . . 12 Message Errors 2 | . . . . . 2 Matter Fused 2 | . . . . . 2 Energy Discharges 2 | . . . . . 2 Data Loss (minor) 2 | . . . . . 2 Data Loss (major) 1 | . . . . . 1 Weapon Failures 3 | . . . . . 3 Overload Shots . | . . . . . . Overflow Damage 74 | . 16 . 5 . 53 Projectiles 8 | . 8 . . . . Explosions 66 | . 8 . 5 . 53 Melee . | . . . . . . Knockbacks 27 | . 3 . 4 8 12 Impact . | . . . . . . Kinetic 25 | . 3 . 4 6 12 Secondary 2 | . . . . 2 . Self-Inflicted Damage 167 | . 29 . . . 138 Shots 3 | . 1 . . . 2 Rammed 2 | . . . 1 . 1 Targets Rammed 2 | . . . 1 . 1 Kicked . | . . . . . . Crushed . | . . . . . . Highest Temperature 600 | . 277 . 211 317 600 Average Temperature 150 | . 77 . 61 173 294 Received Heat Transfer 1127 | . 81 . 259 28 759 Effects 21 | . . . . 2 19 Shutdowns 4 | . . . . . 4 Energy Bleed 4 | . . . . . 4 Interference 7 | . . . . 2 5 Matter Decay 2 | . . . . . 2 Short Circuit 3 | . . . . . 3 Damage (major) 1 | . . . . . 1 Siege Activations . | . . . . . . Martial Activations . | . . . . . . Shielding Activations . | . . . . . . Robots Disrupted 1 | . . . . . 1 Combat Hostiles 1 | . . . . . 1 Robots Corrupted . | . . . . . . Combat Hostiles . | . . . . . . Parts Fried . | . . . . . . Impact Corruptions . | . . . . . . Robots Melted 3 | . . . . . 3 Combat Hostiles 3 | . . . . . 3 Parts Melted 11 | . . . . . 11 Heat Transferred 5440 | . 945 . 1226 259 3010 Parts Sabotaged . | . . . . . . Parts Stolen . | . . . . . . Parts Stripped . | . . . . . . Power Chain Reactions 1 | . 1 . . . . Alert | -11 -10 -10 -8 -7 -6 ------- Run | Yrd Mat Sub Mat Fac Fac Maximum Alert Level 1 | . . . . . 1 Low Security (%) 91 | 100 100 . 100 100 58 Level 1 8 | . . . . . 41 Level 2 . | . . . . . . Level 3 . | . . . . . . Level 4 . | . . . . . . Level 5 . | . . . . . . High Security . | . . . . . . Max Security . | . . . . . . Sterilizations 1 | . . . 1 . . Peak Influence 393 | . 176 . 151 91 393 Initial 27 | . . . . 27 13 Average 63 | . 68 . 46 11 140 Influence Increases 1776 | . 434 . 444 121 777 Destroy 0b10 Robot/C 960 | . 260 . 300 80 320 Destroy 0b10 Robot/NC 40 | . 25 . 15 . . Destroy Leader 222 | . 58 . 64 30 70 Successful Hack 43 | . 10 . 1 10 22 Disable Machine 63 | . 18 . 9 . 36 Destroy Structure 88 | . 3 . 40 1 44 Lose Combat Pursuer 360 | . 60 . 15 . 285 Influence Decreases 1430 | . 434 . 373 161 462 Entered New Map 62 | . . . . 44 18 Time Decay 1228 | . 424 . 363 117 324 Lost Part 140 | . 10 . 10 . 120 Squads Dispatched 16 | . 1 . 3 3 9 Investigation 5 | . 1 . 1 1 2 Extermination 2 | . . . . 1 1 Reinforcement 5 | . . . 1 1 3 Assault 1 | . . . 1 . . Garrison 3 | . . . . . 3 Intercept . | . . . . . . Searches Triggered . | . . . . . . Construction Impeded 1 | . . . . 1 . Haulers Reinforced 1 | . . . . . 1 Active Scanning Responses . | . . . . . . Cargo Convoy Interrupts 1 | . . . . . 1 Stealth | -11 -10 -10 -8 -7 -6 --------- Run | Yrd Mat Sub Mat Fac Fac Distress Signals 3 | . . . 1 . 2 Communications Jammed . | . . . . . . Distress Signals . | . . . . . . Times Spotted 101 | . 20 . 23 5 53 Peak Tracking Total 12 | . 4 . 5 2 12 Tactical Retreats 9 | . 2 . 1 . 6 Traps | -11 -10 -10 -8 -7 -6 ------- Run | Yrd Mat Sub Mat Fac Fac Traps Triggered 4 | . 1 . 1 1 1 Indirectly . | . . . . . . Trap Hack Attempts . | . . . . . . Triggered . | . . . . . . Disarmed . | . . . . . . Reprogrammed . | . . . . . . Reused . | . . . . . . Traps Extracted . | . . . . . . Installed . | . . . . . . Triggered . | . . . . . . Machines | -11 -10 -10 -8 -7 -6 ---------- Run | Yrd Mat Sub Mat Fac Fac Machines Disabled 7 | . 2 . 1 . 4 Max in Single Turn 2 | . 2 . 1 . 2 Garrison Access 2 | . . . 1 . 1 Machines Repaired . | . . . . . . Machines Dismantled . | . . . . . . Machines Sabotaged . | . . . . . . Overloaded Fab Kills . | . . . . . . Hacking | -11 -10 -10 -8 -7 -6 --------- Run | Yrd Mat Sub Mat Fac Fac Machines Accessed 21 | . 7 2 1 3 8 Terminals 12 | . 6 . . 1 5 Fabricators 2 | . . . . 1 1 Repair Stations 1 | . . . . 1 . Recycling Units 1 | . 1 . . . . Scanalyzers 1 | . . . 1 . . Garrison Access 2 | . . . . . 2 Total Hacks 49 | . 17 3 8 6 15 Successful 25 | . 8 3 6 3 5 Failed 24 | . 9 . 2 3 10 Catastrophic 2 | . 1 . . . 1 Database Lockouts . | . . . . . . Manual 2 | . 2 . . . . Terminals 28 | . 16 . . 2 10 Fabricators 4 | . . . . 2 2 Repair Stations 2 | . . . . 2 . Recycling Units 1 | . 1 . . . . Scanalyzers 8 | . . . 8 . . Garrison Access 3 | . . . . . 3 Terminal Hacks 13 | . 7 3 . 1 2 Record 2 | . 1 1 . . . Part Schematic 3 | . 2 . . 1 . Prototype ID Bank 1 | . 1 . . . . Open Door 1 | . . 1 . . . Scanalyzer Index 1 | . . . . . 1 Maintenance Status 1 | . 1 . . . . Patrol Status 1 | . 1 . . . . Hauler Manifests 1 | . . . . . 1 Zone Layout 1 | . 1 . . . . Release Object 1 | . . 1 . . . Fabricator Hacks 3 | . . . . 1 2 Network Status 1 | . . . . 1 . Load Schematic 1 | . . . . . 1 Build 1 | . . . . . 1 Repair Station Hacks 1 | . . . . 1 . Scan Component 1 | . . . . 1 . Recycling Unit Hacks 1 | . 1 . . . . Retrieve Matter 1 | . 1 . . . . Scanalyzer 6 | . . . 6 . . Insert Component 1 | . . . 1 . . Analyze 1 | . . . 1 . . Retrieve Study 4 | . . . 4 . . Garrison Access Hacks 1 | . . . . . 1 Seal Access 1 | . . . . . 1 Unauthorized Hacks . | . . . . . . Terminals . | . . . . . . Fabricators . | . . . . . . Repair Stations . | . . . . . . Recycling Units . | . . . . . . Scanalyzers . | . . . . . . Garrison Access . | . . . . . . Data Cores Recovered . | . . . . . . Used . | . . . . . . Hacking Detections 14 | . 4 . 1 3 6 Full Trace Events 2 | . . . . . 2 Feedback Events . | . . . . . . Feedback Blocked . | . . . . . . Robot Schematics Acquired . | . . . . . . Robots Built . | . . . . . . Authchips . | . . . . . . Time . | . . . . . . Total Robot Build Rating . | . . . . . . Part Schematics Acquired 4 | . 2 . 1 1 . Parts Built 1 | . . . . . 1 Authchips . | . . . . . . Time 25 | . . . . . 25 Total Part Build Rating 1 | . . . . . 1 Part Studies Acquired 4 | . . . 4 . . Parts Repaired . | . . . . . . Time . | . . . . . . Parts Recycled . | . . . . . . Recycled Matter . | . . . . . . Retrieved Matter . | . . . . . . Retrieved Components . | . . . . . . Parts Scanalyzed 1 | . . . 1 . . Part Schematics Acquired 1 | . . . 1 . . Parts Damaged 1 | . . . 1 . . Bothacking | -11 -10 -10 -8 -7 -6 ------------ Run | Yrd Mat Sub Mat Fac Fac Used RIF Installer . | . . . . . . Robots Hacked . | . . . . . . Non-combat . | . . . . . . Combat . | . . . . . . Robot Hacks Applied . | . . . . . . Relay Couplers Released 2 | . . . 2 . . Machine Destruction 2 | . . . 2 . . Fabnet Peak Effective % . | . . . . . . Robots Rewired . | . . . . . . Allies Hacked . | . . . . . . Hacks Repelled . | . . . . . . Allies | -11 -10 -10 -8 -7 -6 -------- Run | Yrd Mat Sub Mat Fac Fac Total Allies . | . . . . . . Largest Group . | . . . . . . Highest-Rated Group . | . . . . . . Highest-Rated Ally . | . . . . . . Total Orders . | . . . . . . Ally Attacks . | . . . . . . Total Damage . | . . . . . . Kills . | . . . . . . Allies Corrupted . | . . . . . . Allies Melted . | . . . . . . Intel | -11 -10 -10 -8 -7 -6 ------- Run | Yrd Mat Sub Mat Fac Fac Active Infowar (turns) 1855 | . . . 668 899 288 Optics 1567 | . . . 668 899 . Sensors 288 | . . . . . 288 Robot Analysis Total . | . . . . . . Derelict Logs Recovered . | . . . . . . Drone Launches . | . . . . . . Drone Recoveries . | . . . . . . Exploration | -11 -10 -10 -8 -7 -6 ------------- Run | Yrd Mat Sub Mat Fac Fac Turns Passed 4390 | 56 1105 635 919 901 774 Spaces Moved 2618 | 38 597 260 442 405 876 Core 1 | 1 . . . . . Treads 1396 | 9 264 260 442 405 16 Legs . | . . . . . . Wheels 361 | 28 333 . . . . Hover 860 | . . . . . 860 Flight . | . . . . . . Fastest Speed 50 | 50 90 240 160 200 52 Average Speed 138 | 105 154 240 161 203 56 Slowest Speed 240 | 160 240 240 200 218 218 Overloaded Moves . | . . . . . . Propulsion Burnouts . | . . . . . . Robots Hopped . | . . . . . . Potential Cave-ins . | . . . . . . Cave-ins Triggered . | . . . . . . Exploration Rate (%) 30 | 3 90 12 43 11 22 Regions Visited 5 Branch Regions 1 Pre-discovered Areas . | . . . . . . Known Exits Taken 2 | . 1 1 . . . Unknown Exits Taken 3 | 1 . . 1 1 . Scrap Searched 1 | . . 1 . . . Spaces Dug 3 | . . . . . 3 Terrain Destroyed 85 | . 2 . 39 . 44 Melee . | . . . . . . Projectile 3 | . . . . . 3 AOE 82 | . 2 . 39 . 41 Terrain Rammed . | . . . . . . Walls Destroyed . | . . . . . . Machines Disabled . | . . . . . . Actions | -11 -10 -10 -8 -7 -6 --------- Run | Yrd Mat Sub Mat Fac Fac Total 3119 | 49 699 281 561 464 1065 Wait 78 | . 26 . 12 8 32 Move 2613 | 37 596 259 441 404 876 Hop . | . . . . . . Pick Up 91 | 4 21 3 28 13 22 Fast Attach 16 | 6 1 . 3 . 6 Attach 18 | . 1 . 2 3 12 Detach 1 | . . . . . 1 Swap 42 | 2 9 1 15 7 8 Drop 79 | . 5 18 11 15 30 Fire 165 | . 40 . 47 14 64 Melee . | . . . . . . Ram 1 | . . . . . 1 Kick . | . . . . . . Crush 1 | . . . 1 . . Escape Stasis 13 | . . . . . 13 Rewire . | . . . . . . Trap . | . . . . . . Miscellaneous 1 | . . . 1 . . Route ------- -11/Scrapyard -10/Materials (discovered 5 exits: *Mat x3 / *Min / *Sub) -10/Subcaves -8/Materials -7/Factory -6/Factory (discovered 1 exit: [*Low]) History --------- Turn | Location | Event 22 | -11/Scrapyard | Discovered new exit (range 16) 57 | -11/Scrapyard | Entered Materials 226 | -10/Materials | Discovered new exit (range 12) 302 | -10/Materials | Discovered new exit (range 8) 307 | -10/Materials | Build established: Mutant 316 | -10/Materials | Identified exit to Materials 367 | -10/Materials | Identified exit to Mines 459 | -10/Materials | Discovered exit to Materials (range 13) 568 | -10/Materials | Discovered new exit (range 8) 599 | -10/Materials | Identified exit to Subcaves 981 | -10/Materials | Discovered exit to Materials (range 10) 1162 | -10/Materials | Entered Subcaves 1240 | -10/Subcaves | Discovered new exit (range 15) 1271 | -10/Subcaves | Identified exit to Materials 1770 | -10/Subcaves | Found SUBCON Basin 1797 | -10/Subcaves | Entered Materials 1797 | -8/Materials | Evolved 4 slots: Propulsion x2, Utility x2 1801 | -8/Materials | Released subatomizers from SUBCON Basin 2397 | -8/Materials | Sterilization system engaged 2397 | -8/Materials | Non-combat units ordered to evacuate 2497 | -8/Materials | Combat units ordered to evacuate 2660 | -8/Materials | Discovered new exit (range 20) 2697 | -8/Materials | Ambient heat levels rising (+10) 2716 | -8/Materials | Entered Factory 2716 | -7/Factory | Evolved 2 slots: Power x1, Weapon x1 3016 | -7/Factory | Build established: Tank 3517 | -7/Factory | Discovered new exit (range 20) 3617 | -7/Factory | Entered another Factory area 3617 | -6/Factory | Evolved 2 slots: Propulsion x1, Utility x1 3684 | -6/Factory | Fabricated Med. Storage Unit (x1) 3804 | -6/Factory | Discovered new exit (range 12) 3999 | -6/Factory | Garrison activated, responded to threat 4059 | -6/Factory | Build established: Hacker-Mutant 4321 | -6/Factory | Cargo convoy interrupted 4391 | -6/Factory | Self-destructed Last Messages --------------- 04359_ Melted Remote Datajack. 04359_ P-60 Hacker suffers critical hit (Burn). 04359_ P-60 Hacker critical meltdown. 04359_ Imp. Heat Sink melted. 04359_ Target Analyzer melted. 04359_ Gravmag System melted. 04359_ Mic. Nuclear Core melted. 04360_ K-01 Serf collects debris. 04363_ R-10 Processor collects Lrg. Battery. 04363_ Penetrated by Slug. 04364_ Acquired 42 matter. 04364_ R-10 Processor collects Corrupted Imp. Arc Projector. 04368_ Thermic Laser destroyed. 04369_ Acquired Phase Cannon. 04374_ System corrupted: Energy discharge (-49). 04381_ Critical hit (Burn: +37). 04383_ Angular Momentum Engine destroyed. 04385_ Gravmag Array destroyed. 04389_ CCCD6AT,HK|4NR L7VT3G8NGSOMGLPC3X 04391_ Hacking Suite destroyed. Map ----- +----------------------------------------------------+ | ?????????????????????? ??????????????????????? | | ?????????????????????# ??????????????????????? | | ?????????????????????# ??????????????????????? | | ?????????????????????# ??????????????????????? | | ?????????????????????+ +?????????????????????? | | ?????????????????????# #?????????????????????? | | ?????????????????????# #?????????????????????? | | ?????????????????????# #?????????????????????? | | ?????????????????????# #?????????????????????? | | ?????????????????????# #?????????????????????? | | ?????????????????????# #?###????###??????????? | | ?????????????????????# g g ###"######"###????????? | | ?????????????????????# g # #????????? | | ?????????????????????#kw # #????????? | | ?????????????????????# # #????????? | | ?????????????????????# # """ """ #????????? | | ?????????????????????# # """ """ #????????? | | ?????????????????????#k # """ """ #????????? | | ?????????????????????# g #????????? | | ?????????????????????# g# """ #????????? | | ?????????????????????# # """ " "" #????????? | | ?????????????????????# # """ "R"" #????????? | | ?????????????????????# # """ #????????? | | ?????????????????????# # #????????? | | ?????????????????????# ###+#############?????? | | ?????????????????????#t @R# #?????? | | ?????????????????????#k R# #?????? | | ?????????????????????# # #?????? | | ?????????????????????# s # #?????? | | ?????????????????????# m# #?????? | | ?????????????????????# # #?????? | | ?????????????????????# k# #?????? | | ?????????????????????+ # #?????? | | ?????????????????????# # [ #?????? | | ?????????????????????# # ![ #?????? | | ????????????????????## ss ###/#############?????? | | ???????????????? % R %* #?????????###### | | ???????????????? ########### | | ???????????????? k | | ????????????????? ########### "" | | ????????????????? #?????????# "" | | ?????????????????####################???????# "" | | ?????????????????# """"""""""" #?????? # ^ | | ?????????????????# """"T"""" ## """" # "" | | ?????????????????# ## """" # "" | | ?????????????????# """"""""" ## """" # "" | | ?????????? ?????# ## """" # | | ?????????# ????# """"""""" ## """" # "" | | ?????????# ???#! ## # "" | | ?????????# ??# #?? !# "" | +----------------------------------------------------+ Best States ------------- Heat Dissipation 75 Energy Generation 31 Energy Capacity 975 Matter Stores 300 Matter Capacity 300 Sight Range 20 Robot Scan Range 16 Terrain Scan Density 10 Base Temperature (-) 100 Armor Coverage 300 Resistance: KI 50 Resistance: TH 30 Resistance: EX 20 Resistance: EM 20 Resistance: I 20 Resistance: S 20 Resistance: P 20 Evasion (%) 64 Targeting Accuracy 5 Recoil Reduction 4 Offensive Hacking 20 Item Schematics ----------------- Lrg. Storage Unit | -10/Materials | Hacked Med. Storage Unit | -10/Materials | Hacked Hvy. Particle Gun | -8/Materials | Scanalyzed Gyrokinetic Inverter | -7/Factory | Hacked Robot Schematics ------------------ None Fabricated ------------ Med. Storage Unit | x1 | -6/Factory Repaired ---------- Nothing Studied --------- Lgt. Treads | -8/Materials | Hacked Hvy. Assault Rifle | -8/Materials | Hacked Beam Rifle | -8/Materials | Hacked Imp. Grenade Launcher | -8/Materials | Hacked Alien Tech Used ----------------- None Achievements -------------- None Challenges ------------ None Game ------ Seed LinkedDamperTurretformer Manual? 0 Play Time 00:58:25 Cumulative 42.7 hours Start 2026.06.23 @ 13:49:45 End 2026.06.23 @ 15:08:15 Sessions 1 Manual Loads 0 Difficulty Adventurer Special Mode None Game No. 39 Rogue 0 Adventurer 39 Explorer 0 Win Type - Total 0 Types 0/0/0/0/0/0/0/0/0/0 Lore% 24 Gallery% 36 Achievement% 28 Wizard Run 0 Options --------- Layout 0 ASCII 0 Keyboard 0 Movement Mouse Keybinds 0 Fullscreen 1 Font 18/SmallcapsGlow Map View 76x50 Zoom Use 0% Tactical HUD 1 Map Filters NONE Filters NONE Steam 1 RUN: be0773aa-17be-4b57-9b28-d865e5ae1170